[Event "Late-Titled-Tuesday-Blitz-February-06-2024"]
[Site "Chess.com"]
[Date "2024.02.06"]
[Round "7"]
[White "crazy_but_lazy"]
[Black "j_coca"]
[Result "1-0"]
[WhiteElo "2601"]
[BlackElo "2454"]
[TimeControl "180+1"]
[EndTime "15:18:40 PST"]
[Termination "crazy_but_lazy won on time"]

1. e4 {[%clk 0:02:45.8]} 1... g6 {[%clk 0:03:00.9]} 2. d4 {[%clk 0:02:46]} 2...
Bg7 {[%clk 0:02:57.8]} 3. Nc3 {[%clk 0:02:46.2]} 3... d6 {[%clk 0:02:57.7]} 4.
f4 {[%clk 0:02:46.6]} 4... Nh6 {[%clk 0:02:57.3]} 5. Nf3 {[%clk 0:02:45.5]} 5...
O-O {[%clk 0:02:57.8]} 6. Bd3 {[%clk 0:02:43.6]} 6... Kh8 {[%clk 0:02:58.2]} 7.
Be3 {[%clk 0:02:41.7]} 7... e6 {[%clk 0:02:57.5]} 8. Qd2 {[%clk 0:02:41.6]} 8...
Nc6 {[%clk 0:02:58.1]} 9. h3 {[%clk 0:02:40]} 9... f5 {[%clk 0:02:57.9]} 10. e5
{[%clk 0:02:39.1]} 10... Nf7 {[%clk 0:02:53.2]} 11. O-O-O {[%clk 0:02:33.7]}
11... a6 {[%clk 0:02:52.5]} 12. g4 {[%clk 0:02:33.1]} 12... dxe5 {[%clk
0:02:48.7]} 13. dxe5 {[%clk 0:02:16.5]} 13... Nb4 {[%clk 0:02:48]} 14. Be2
{[%clk 0:01:40.1]} 14... Qxd2+ {[%clk 0:02:44.7]} 15. Rxd2 {[%clk 0:01:41]}
15... b6 {[%clk 0:02:36.1]} 16. Rhd1 {[%clk 0:01:24.7]} 16... Bb7 {[%clk
0:02:13.4]} 17. Rd7 {[%clk 0:01:24.9]} 17... Rac8 {[%clk 0:02:13.7]} 18. Nd4
{[%clk 0:00:55.1]} 18... Nd5 {[%clk 0:02:01.3]} 19. Nxd5 {[%clk 0:00:52.1]}
19... Bxd5 {[%clk 0:01:20.3]} 20. c4 {[%clk 0:00:52]} 20... c5 {[%clk
0:01:12.1]} 21. Nf3 {[%clk 0:00:24.9]} 21... Bc6 {[%clk 0:01:09.1]} 22. Ra7
{[%clk 0:00:25.3]} 22... a5 {[%clk 0:01:05.3]} 23. g5 {[%clk 0:00:17.8]} 23...
Kg8 {[%clk 0:01:03.7]} 24. h4 {[%clk 0:00:18]} 24... Rfd8 {[%clk 0:01:03.9]} 25.
h5 {[%clk 0:00:16.9]} 25... Rxd1+ {[%clk 0:01:02.3]} 26. Bxd1 {[%clk 0:00:17.8]}
26... Nd8 {[%clk 0:00:48.6]} 27. h6 {[%clk 0:00:14.8]} 27... Bf8 {[%clk
0:00:48.3]} 28. Nd2 {[%clk 0:00:12.9]} 28... Bb7 {[%clk 0:00:46.6]} 29. Nb1
{[%clk 0:00:11.3]} 29... Rc7 {[%clk 0:00:45.6]} 30. Nc3 {[%clk 0:00:10.9]} 30...
Nc6 {[%clk 0:00:42.4]} 31. Nb5 {[%clk 0:00:10.1]} 31... Rd7 {[%clk 0:00:42.7]}
32. Rxb7 {[%clk 0:00:10.4]} 32... Rxb7 {[%clk 0:00:42.4]} 33. Bf3 {[%clk
0:00:11.2]} 33... Nd8 {[%clk 0:00:38]} 34. Bxb7 {[%clk 0:00:10.6]} 34... Nxb7
{[%clk 0:00:38.9]} 35. Nc7 {[%clk 0:00:08.7]} 35... Kf7 {[%clk 0:00:38.3]} 36.
Na8 {[%clk 0:00:09.3]} 36... Be7 {[%clk 0:00:32.5]} 37. Nxb6 {[%clk 0:00:09.4]}
37... Bd8 {[%clk 0:00:33.2]} 38. Na4 {[%clk 0:00:08.7]} 38... Be7 {[%clk
0:00:32.3]} 39. Kd2 {[%clk 0:00:09.2]} 39... Ke8 {[%clk 0:00:32.4]} 40. Kc3
{[%clk 0:00:09.4]} 40... Kd7 {[%clk 0:00:33]} 41. Kd3 {[%clk 0:00:09.4]} 41...
Kc6 {[%clk 0:00:33.6]} 42. Nc3 {[%clk 0:00:09.7]} 42... Bd8 {[%clk 0:00:29.2]}
43. Kc2 {[%clk 0:00:07.7]} 43... Be7 {[%clk 0:00:28.9]} 44. Kb3 {[%clk
0:00:08.2]} 44... Nd8 {[%clk 0:00:26]} 45. Ka4 {[%clk 0:00:07.5]} 45... Kb6
{[%clk 0:00:26.6]} 46. a3 {[%clk 0:00:07.6]} 46... Nc6 {[%clk 0:00:26.5]} 47.
Ne2 {[%clk 0:00:06.4]} 47... Ka6 {[%clk 0:00:24.4]} 48. Ng1 {[%clk 0:00:05]}
48... Kb6 {[%clk 0:00:19.2]} 49. Nf3 {[%clk 0:00:05.5]} 49... Bd8 {[%clk
0:00:17.7]} 50. Nh4 {[%clk 0:00:05.6]} 50... Ne7 {[%clk 0:00:16]} 51. b4 {[%clk
0:00:04.4]} 51... axb4 {[%clk 0:00:15.5]} 52. axb4 {[%clk 0:00:05.3]} 52... Kc6
{[%clk 0:00:11.9]} 53. Bxc5 {[%clk 0:00:05.3]} 53... Ng8 {[%clk 0:00:12.1]} 54.
Nxg6 {[%clk 0:00:03.4]} 54... Kc7 {[%clk 0:00:09.1]} 55. Nh4 {[%clk 0:00:03.8]}
55... Kd7 {[%clk 0:00:08.5]} 56. Bf2 {[%clk 0:00:03.4]} 56... Ne7 {[%clk
0:00:07.1]} 57. b5 {[%clk 0:00:03.8]} 57... Bc7 {[%clk 0:00:04.9]} 58. g6 {[%clk
0:00:04.1]} 1-0

[Event "Late-Titled-Tuesday-Blitz-February-06-2024"]
[Site "Chess.com"]
[Date "2024.02.06"]
[Round "7"]
[White "mightysmasher"]
[Black "IranianCheetah"]
[Result "1-0"]
[WhiteElo "2559"]
[BlackElo "2358"]
[TimeControl "180+1"]
[EndTime "15:18:41 PST"]
[Termination "mightysmasher won on time"]

1. e4 {[%clk 0:03:00.9]} 1... e5 {[%clk 0:02:58.5]} 2. Nf3 {[%clk 0:03:00.5]}
2... Nc6 {[%clk 0:02:58.5]} 3. Bc4 {[%clk 0:03:00.6]} 3... Bc5 {[%clk
0:02:58.2]} 4. c3 {[%clk 0:03:00.8]} 4... Nf6 {[%clk 0:02:58.8]} 5. d3 {[%clk
0:03:01]} 5... a6 {[%clk 0:02:58.4]} 6. O-O {[%clk 0:03:00.7]} 6... d6 {[%clk
0:02:58.8]} 7. b4 {[%clk 0:03:00.4]} 7... Bb6 {[%clk 0:02:58.3]} 8. Be3 {[%clk
0:03:00.7]} 8... Ba7 {[%clk 0:02:52]} 9. Bxa7 {[%clk 0:02:56.4]} 9... Rxa7
{[%clk 0:02:51.9]} 10. Nbd2 {[%clk 0:02:55.1]} 10... O-O {[%clk 0:02:51.6]} 11.
a4 {[%clk 0:02:54.1]} 11... Ra8 {[%clk 0:02:51]} 12. Qe2 {[%clk 0:02:52.6]}
12... Ne7 {[%clk 0:02:47.3]} 13. Bb3 {[%clk 0:02:50.8]} 13... Ng6 {[%clk
0:02:47.4]} 14. g3 {[%clk 0:02:41.1]} 14... Bh3 {[%clk 0:02:41.9]} 15. Rfe1
{[%clk 0:02:40.3]} 15... h6 {[%clk 0:02:41.3]} 16. d4 {[%clk 0:02:35.2]} 16...
Re8 {[%clk 0:02:29.7]} 17. dxe5 {[%clk 0:02:31.3]} 17... Nxe5 {[%clk 0:02:19.1]}
18. Nxe5 {[%clk 0:02:29]} 18... Rxe5 {[%clk 0:02:19.3]} 19. f3 {[%clk
0:02:23.4]} 19... Be6 {[%clk 0:02:11.5]} 20. Bxe6 {[%clk 0:02:16.1]} 20... Rxe6
{[%clk 0:02:09.2]} 21. Rad1 {[%clk 0:02:16.3]} 21... Qe8 {[%clk 0:02:08.6]} 22.
a5 {[%clk 0:02:14.8]} 22... Qc6 {[%clk 0:02:07.2]} 23. Qc4 {[%clk 0:02:11.2]}
23... Qxc4 {[%clk 0:01:56]} 24. Nxc4 {[%clk 0:02:10.2]} 24... Rae8 {[%clk
0:01:56.9]} 25. Kf2 {[%clk 0:02:08.3]} 25... d5 {[%clk 0:01:50.7]} 26. exd5
{[%clk 0:02:07]} 26... Rxe1 {[%clk 0:01:51.4]} 27. Rxe1 {[%clk 0:02:06.6]} 27...
Rxe1 {[%clk 0:01:52.1]} 28. Kxe1 {[%clk 0:02:07.5]} 28... Nxd5 {[%clk
0:01:52.8]} 29. Kd2 {[%clk 0:02:07.9]} 29... f6 {[%clk 0:01:37.3]} 30. Kd3
{[%clk 0:02:07]} 30... Kf7 {[%clk 0:01:37.4]} 31. Kd4 {[%clk 0:02:06.2]} 31...
Ke6 {[%clk 0:01:37.4]} 32. Nd2 {[%clk 0:02:06]} 32... Ne7 {[%clk 0:01:29.5]} 33.
Ne4 {[%clk 0:02:03.1]} 33... b6 {[%clk 0:01:18.2]} 34. axb6 {[%clk 0:01:59.5]}
34... cxb6 {[%clk 0:01:19.1]} 35. c4 {[%clk 0:01:59.3]} 35... Nc6+ {[%clk
0:01:10.9]} 36. Kc3 {[%clk 0:01:58.4]} 36... a5 {[%clk 0:01:08.9]} 37. b5 {[%clk
0:01:55.4]} 37... Ne5 {[%clk 0:00:55.5]} 38. f4 {[%clk 0:01:54.3]} 38... Nf3
{[%clk 0:00:41.4]} 39. h3 {[%clk 0:01:52.9]} 39... f5 {[%clk 0:00:40.3]} 40. Nf2
{[%clk 0:01:48.8]} 40... g5 {[%clk 0:00:32.2]} 41. Nd3 {[%clk 0:01:47.5]} 41...
Ng1 {[%clk 0:00:26.5]} 42. h4 {[%clk 0:01:45.2]} 42... gxh4 {[%clk 0:00:20.2]}
43. gxh4 {[%clk 0:01:45.1]} 43... h5 {[%clk 0:00:16.8]} 44. c5 {[%clk
0:01:44.8]} 44... bxc5 {[%clk 0:00:15.6]} 45. Nxc5+ {[%clk 0:01:44.4]} 45... Kd5
{[%clk 0:00:15.9]} 46. b6 {[%clk 0:01:35.1]} 46... Kc6 {[%clk 0:00:15.6]} 47. b7
{[%clk 0:01:33.7]} 47... Kc7 {[%clk 0:00:16.1]} 48. Kd4 {[%clk 0:01:32.1]} 48...
Nf3+ {[%clk 0:00:14.8]} 49. Kc4 {[%clk 0:01:31.3]} 49... Nxh4 {[%clk 0:00:14.8]}
50. Kb5 {[%clk 0:01:31.4]} 50... Ng6 {[%clk 0:00:12.5]} 51. Ka6 {[%clk 0:01:31]}
51... Ne7 {[%clk 0:00:09.8]} 52. Kxa5 {[%clk 0:01:21.2]} 52... Nc6+ {[%clk
0:00:09.1]} 53. Kb5 {[%clk 0:01:17.3]} 53... h4 {[%clk 0:00:08.6]} 54. Ne6+
{[%clk 0:01:12.8]} 54... Kxb7 {[%clk 0:00:09]} 55. Ng5 {[%clk 0:01:13.2]} 55...
Nd4+ {[%clk 0:00:07.2]} 56. Kc4 {[%clk 0:01:10.8]} 56... Ne6 {[%clk 0:00:06.5]}
57. Nxe6 {[%clk 0:00:46]} 57... h3 {[%clk 0:00:06.4]} 58. Nc5+ {[%clk
0:00:46.2]} 58... Kc6 {[%clk 0:00:05.4]} 59. Nd3 {[%clk 0:00:46.7]} 59... h2
{[%clk 0:00:03.4]} 60. Nf2 {[%clk 0:00:46.7]} 60... Kd6 {[%clk 0:00:01.7]} 61.
Kd4 {[%clk 0:00:46.9]} 61... Ke6 {[%clk 0:00:01.1]} 62. Kc5 {[%clk 0:00:46.3]}
62... Kf6 {[%clk 0:00:01.2]} 63. Kd6 {[%clk 0:00:46.6]} 63... Kg6 {[%clk
0:00:01.7]} 64. Ke5 {[%clk 0:00:47]} 64... Kh5 {[%clk 0:00:02]} 65. Kxf5 {[%clk
0:00:45.9]} 65... Kh4 {[%clk 0:00:02.9]} 66. Ke4 {[%clk 0:00:45]} 66... Kg3
{[%clk 0:00:03]} 67. Ke3 {[%clk 0:00:45.1]} 67... Kh4 {[%clk 0:00:02.7]} 68. Kf3
{[%clk 0:00:44.8]} 68... Kh5 {[%clk 0:00:02.4]} 69. Kg2 {[%clk 0:00:44.6]} 69...
Kh4 {[%clk 0:00:01.5]} 70. Kxh2 {[%clk 0:00:44.4]} 1-0

[Event "Late-Titled-Tuesday-Blitz-February-06-2024"]
[Site "Chess.com"]
[Date "2024.02.06"]
[Round "7"]
[White "masterofpuppets2"]
[Black "Ready4abattle"]
[Result "1/2-1/2"]
[WhiteElo "2502"]
[BlackElo "2320"]
[TimeControl "180+1"]
[EndTime "15:18:47 PST"]
[Termination "Game drawn - insufficient material"]

1. e4 {[%clk 0:03:00.9]} 1... c5 {[%clk 0:03:00]} 2. c3 {[%clk 0:03:00.8]} 2...
d5 {[%clk 0:02:59.8]} 3. exd5 {[%clk 0:03:01.1]} 3... Qxd5 {[%clk 0:03:00.7]} 4.
d4 {[%clk 0:03:01.7]} 4... Nc6 {[%clk 0:03:01]} 5. Nf3 {[%clk 0:03:02.2]} 5...
Bf5 {[%clk 0:03:01.2]} 6. Be3 {[%clk 0:02:57.7]} 6... Nf6 {[%clk 0:02:58.1]} 7.
Na3 {[%clk 0:02:53.7]} 7... cxd4 {[%clk 0:02:36.9]} 8. Nb5 {[%clk 0:02:52.9]}
8... O-O-O {[%clk 0:02:37.4]} 9. cxd4 {[%clk 0:02:32.8]} 9... e6 {[%clk
0:02:31.7]} 10. Rc1 {[%clk 0:02:28.5]} 10... Bb4+ {[%clk 0:02:31.2]} 11. Bd2
{[%clk 0:02:14.9]} 11... Kb8 {[%clk 0:02:05.9]} 12. Be2 {[%clk 0:02:11.1]} 12...
a6 {[%clk 0:01:56.8]} 13. Nc3 {[%clk 0:02:06]} 13... Bxc3 {[%clk 0:01:49.6]} 14.
bxc3 {[%clk 0:02:02.7]} 14... Ne4 {[%clk 0:01:44.8]} 15. Be3 {[%clk 0:01:59.8]}
15... Qa5 {[%clk 0:01:41.1]} 16. Qb3 {[%clk 0:01:45.6]} 16... Rd7 {[%clk
0:01:29.5]} 17. O-O {[%clk 0:01:45.3]} 17... Ka8 {[%clk 0:01:26.3]} 18. c4
{[%clk 0:01:36.8]} 18... Qb4 {[%clk 0:01:23.4]} 19. Rfd1 {[%clk 0:01:28.3]}
19... Qxb3 {[%clk 0:01:22.8]} 20. axb3 {[%clk 0:01:28.3]} 20... h6 {[%clk
0:01:19.1]} 21. h3 {[%clk 0:01:27.9]} 21... Rhd8 {[%clk 0:01:15.5]} 22. g4
{[%clk 0:01:10.7]} 22... Bh7 {[%clk 0:01:13.9]} 23. Kg2 {[%clk 0:01:11.1]} 23...
g5 {[%clk 0:01:12.8]} 24. Ra1 {[%clk 0:00:23.7]} 24... Kb8 {[%clk 0:01:04.1]}
25. Rac1 {[%clk 0:00:23.2]} 25... f5 {[%clk 0:00:51.9]} 26. Ne5 {[%clk
0:00:18.1]} 26... Nxe5 {[%clk 0:00:47.8]} 27. dxe5 {[%clk 0:00:18.3]} 27... f4
{[%clk 0:00:44.1]} 28. Bb6 {[%clk 0:00:17.1]} 28... Rxd1 {[%clk 0:00:42.7]} 29.
Rxd1 {[%clk 0:00:17.3]} 29... Rxd1 {[%clk 0:00:41.3]} 30. Bxd1 {[%clk
0:00:17.7]} 30... Nc3 {[%clk 0:00:31.5]} 31. Bf3 {[%clk 0:00:15.7]} 31... Bc2
{[%clk 0:00:30.9]} 32. b4 {[%clk 0:00:15.3]} 32... Bd3 {[%clk 0:00:25.8]} 33. c5
{[%clk 0:00:13.6]} 33... Kc8 {[%clk 0:00:22.8]} 34. Ba5 {[%clk 0:00:04]} 34...
Be4 {[%clk 0:00:21.3]} 35. Bxe4 {[%clk 0:00:03.9]} 35... Nxe4 {[%clk 0:00:21]}
36. Kf3 {[%clk 0:00:04.6]} 36... Nc3 {[%clk 0:00:19.9]} 37. h4 {[%clk
0:00:04.9]} 37... Kd7 {[%clk 0:00:18.3]} 38. hxg5 {[%clk 0:00:05.1]} 38... hxg5
{[%clk 0:00:19]} 39. Bb6 {[%clk 0:00:05]} 39... Kc6 {[%clk 0:00:19]} 40. Bd8
{[%clk 0:00:04.9]} 40... Kb5 {[%clk 0:00:15.5]} 41. Bxg5 {[%clk 0:00:05]} 41...
Kxb4 {[%clk 0:00:16.1]} 42. Bxf4 {[%clk 0:00:05.1]} 42... Kxc5 {[%clk
0:00:16.4]} 43. g5 {[%clk 0:00:04.9]} 43... Nd5 {[%clk 0:00:16.5]} 44. g6 {[%clk
0:00:04.7]} 44... Ne7 {[%clk 0:00:16.2]} 45. g7 {[%clk 0:00:04.8]} 45... a5
{[%clk 0:00:15.8]} 46. Bg5 {[%clk 0:00:04.6]} 46... Ng8 {[%clk 0:00:16.1]} 47.
Ke2 {[%clk 0:00:04.2]} 47... Kd5 {[%clk 0:00:15.4]} 48. f4 {[%clk 0:00:03.5]}
48... b5 {[%clk 0:00:15.1]} 49. Kd3 {[%clk 0:00:03.1]} 49... b4 {[%clk
0:00:15.3]} 50. Bd8 {[%clk 0:00:02.6]} 50... a4 {[%clk 0:00:15.2]} 51. Be7
{[%clk 0:00:02.6]} 51... b3 {[%clk 0:00:14.9]} 52. Ba3 {[%clk 0:00:02.5]} 52...
Nh6 {[%clk 0:00:14.1]} 53. Kc3 {[%clk 0:00:02.3]} 53... Ke4 {[%clk 0:00:13.5]}
54. Bc1 {[%clk 0:00:01.5]} 54... Kf5 {[%clk 0:00:10]} 55. Kb4 {[%clk 0:00:02]}
55... Kg6 {[%clk 0:00:10.3]} 56. Kxa4 {[%clk 0:00:01.7]} 56... Kxg7 {[%clk
0:00:10.9]} 57. Kxb3 {[%clk 0:00:02.4]} 57... Kg6 {[%clk 0:00:11.5]} 58. Kc4
{[%clk 0:00:03.1]} 58... Kf5 {[%clk 0:00:12.1]} 59. Kd4 {[%clk 0:00:03.6]} 59...
Ng4 {[%clk 0:00:12.4]} 60. Bd2 {[%clk 0:00:02.8]} 60... Nh6 {[%clk 0:00:12.3]}
61. Ke3 {[%clk 0:00:03]} 61... Ng4+ {[%clk 0:00:12.6]} 62. Kf3 {[%clk
0:00:03.6]} 62... Nh6 {[%clk 0:00:13.1]} 63. Be1 {[%clk 0:00:03.8]} 63... Ng4
{[%clk 0:00:13.4]} 64. Bh4 {[%clk 0:00:03.2]} 64... Nxe5+ {[%clk 0:00:12.7]} 65.
fxe5 {[%clk 0:00:03.1]} 65... Kxe5 {[%clk 0:00:13.6]} 66. Bg3+ {[%clk
0:00:02.7]} 66... Kd5 {[%clk 0:00:14.5]} 67. Ke3 {[%clk 0:00:03.1]} 67... e5
{[%clk 0:00:15.4]} 68. Bxe5 {[%clk 0:00:03]} 1/2-1/2

[Event "Late-Titled-Tuesday-Blitz-February-06-2024"]
[Site "Chess.com"]
[Date "2024.02.06"]
[Round "7"]
[White "only_strong_moves"]
[Black "TigrVShlyape"]
[Result "1/2-1/2"]
[WhiteElo "2664"]
[BlackElo "2912"]
[TimeControl "180+1"]
[EndTime "15:18:50 PST"]
[Termination "Game drawn by repetition"]

1. e4 {[%clk 0:03:00.8]} 1... c5 {[%clk 0:02:53.7]} 2. Nf3 {[%clk 0:03:00.8]}
2... e6 {[%clk 0:02:53.5]} 3. d4 {[%clk 0:03:01.1]} 3... cxd4 {[%clk 0:02:53.9]}
4. Nxd4 {[%clk 0:03:02]} 4... a6 {[%clk 0:02:54.2]} 5. c4 {[%clk 0:03:01.5]}
5... Nf6 {[%clk 0:02:42.9]} 6. Bd3 {[%clk 0:03:00]} 6... Nc6 {[%clk 0:02:40.1]}
7. Nc2 {[%clk 0:02:59.4]} 7... d5 {[%clk 0:02:38.7]} 8. cxd5 {[%clk 0:02:58.7]}
8... exd5 {[%clk 0:02:38.8]} 9. exd5 {[%clk 0:02:54.3]} 9... Nxd5 {[%clk
0:02:37.1]} 10. O-O {[%clk 0:02:53.5]} 10... Be7 {[%clk 0:02:37.1]} 11. Re1
{[%clk 0:02:29.8]} 11... O-O {[%clk 0:02:35.3]} 12. Ne3 {[%clk 0:02:21.8]} 12...
Nxe3 {[%clk 0:02:31.1]} 13. Bxe3 {[%clk 0:02:22.7]} 13... Bf6 {[%clk 0:02:29.8]}
14. Nc3 {[%clk 0:02:22.6]} 14... Be6 {[%clk 0:02:18.5]} 15. a3 {[%clk
0:01:42.1]} 15... Rc8 {[%clk 0:02:14.8]} 16. Qc2 {[%clk 0:01:41.4]} 16... g6
{[%clk 0:02:11.5]} 17. Rad1 {[%clk 0:01:41.7]} 17... Qa5 {[%clk 0:02:07]} 18.
Ne4 {[%clk 0:01:26.3]} 18... Bg7 {[%clk 0:02:04.5]} 19. Nd6 {[%clk 0:01:11.2]}
19... Rc7 {[%clk 0:01:16]} 20. Nc4 {[%clk 0:01:11]} 20... Bxc4 {[%clk
0:01:09.7]} 21. Qxc4 {[%clk 0:01:04.2]} 21... Ne5 {[%clk 0:01:09]} 22. Qb3
{[%clk 0:00:51.2]} 22... Nxd3 {[%clk 0:01:08.5]} 23. Bb6 {[%clk 0:00:41.1]}
23... Qf5 {[%clk 0:00:51.9]} 24. Qxd3 {[%clk 0:00:19.1]} 24... Qxd3 {[%clk
0:00:51]} 25. Rxd3 {[%clk 0:00:20]} 25... Rc6 {[%clk 0:00:51.2]} 26. Rb3 {[%clk
0:00:16.4]} 26... Rfc8 {[%clk 0:00:48.9]} 27. Be3 {[%clk 0:00:16]} 27... b5
{[%clk 0:00:48.2]} 28. g3 {[%clk 0:00:12]} 28... Rc2 {[%clk 0:00:47.3]} 29. Rb1
{[%clk 0:00:10.7]} 29... h5 {[%clk 0:00:46.1]} 30. a4 {[%clk 0:00:10.2]} 30...
bxa4 {[%clk 0:00:44.9]} 31. Rb6 {[%clk 0:00:10]} 31... R8c6 {[%clk 0:00:43.2]}
32. Rb8+ {[%clk 0:00:10.3]} 32... Kh7 {[%clk 0:00:43]} 33. Rb4 {[%clk
0:00:10.7]} 33... R2c4 {[%clk 0:00:38.2]} 34. Rb7 {[%clk 0:00:11.1]} 34... Rc7
{[%clk 0:00:36.6]} 35. Rb6 {[%clk 0:00:10.8]} 35... a5 {[%clk 0:00:37]} 36. Ra1
{[%clk 0:00:10.4]} 36... Rd7 {[%clk 0:00:12.1]} 37. Kg2 {[%clk 0:00:09.6]} 37...
Rb4 {[%clk 0:00:10.2]} 38. Ra6 {[%clk 0:00:08]} 38... Bxb2 {[%clk 0:00:08.9]}
39. Ra2 {[%clk 0:00:08.6]} 39... a3 {[%clk 0:00:09.2]} 40. Rxa5 {[%clk
0:00:08.8]} 40... f6 {[%clk 0:00:08.8]} 41. Bc5 {[%clk 0:00:09.1]} 41... Re4
{[%clk 0:00:06.7]} 42. Bxa3 {[%clk 0:00:09.4]} 42... Be5 {[%clk 0:00:06.4]} 43.
Bc5 {[%clk 0:00:08.5]} 43... g5 {[%clk 0:00:06.7]} 44. Be3 {[%clk 0:00:08.7]}
44... Kg6 {[%clk 0:00:06.4]} 45. h3 {[%clk 0:00:08.5]} 45... Rc4 {[%clk
0:00:05.4]} 46. Ra8 {[%clk 0:00:07.8]} 46... Rdc7 {[%clk 0:00:04.8]} 47. Kf3
{[%clk 0:00:06.3]} 47... Rc2 {[%clk 0:00:04.3]} 48. Rxc2 {[%clk 0:00:05.5]}
48... Rxc2 {[%clk 0:00:04.3]} 49. g4 {[%clk 0:00:06]} 49... hxg4+ {[%clk
0:00:02.6]} 50. hxg4 {[%clk 0:00:06.9]} 50... Rc4 {[%clk 0:00:02.7]} 51. Rg8+
{[%clk 0:00:07.5]} 51... Kf7 {[%clk 0:00:02.4]} 52. Ra8 {[%clk 0:00:08.4]} 52...
Kg6 {[%clk 0:00:02.8]} 53. Ra7 {[%clk 0:00:06.9]} 53... Bd4 {[%clk 0:00:02.3]}
54. Bxd4 {[%clk 0:00:06.1]} 54... Rxd4 {[%clk 0:00:02.6]} 55. Re7 {[%clk
0:00:06.2]} 55... Rf4+ {[%clk 0:00:02.1]} 56. Kg3 {[%clk 0:00:06.6]} 56... f5
{[%clk 0:00:01.9]} 57. Re6+ {[%clk 0:00:05.3]} 57... Kf7 {[%clk 0:00:01.8]} 58.
gxf5 {[%clk 0:00:05.7]} 58... Rxf5 {[%clk 0:00:02.2]} 59. Ra6 {[%clk 0:00:06.3]}
59... Rf4 {[%clk 0:00:02.6]} 60. f3 {[%clk 0:00:06.3]} 60... Kg7 {[%clk
0:00:02.7]} 61. Rb6 {[%clk 0:00:06.5]} 61... Kf7 {[%clk 0:00:03.2]} 62. Ra6
{[%clk 0:00:06.9]} 62... Kg7 {[%clk 0:00:03.6]} 63. Rb6 {[%clk 0:00:07.3]} 63...
Kf7 {[%clk 0:00:04.1]} 64. Ra6 {[%clk 0:00:07.7]} 1/2-1/2

[Event "Late-Titled-Tuesday-Blitz-February-06-2024"]
[Site "Chess.com"]
[Date "2024.02.06"]
[Round "7"]
[White "expii"]
[Black "emeli_chess"]
[Result "1-0"]
[WhiteElo "2225"]
[BlackElo "2360"]
[TimeControl "180+1"]
[EndTime "15:18:52 PST"]
[Termination "expii won on time"]

1. e4 {[%clk 0:02:58.9]} 1... c5 {[%clk 0:02:59.3]} 2. Nf3 {[%clk 0:02:59.4]}
2... d6 {[%clk 0:02:59.3]} 3. d4 {[%clk 0:03:00]} 3... cxd4 {[%clk 0:02:59.6]}
4. Nxd4 {[%clk 0:03:00.9]} 4... Nf6 {[%clk 0:02:59.5]} 5. Nc3 {[%clk 0:03:01.6]}
5... a6 {[%clk 0:03:00.1]} 6. g3 {[%clk 0:03:02.1]} 6... e5 {[%clk 0:02:57.5]}
7. Nde2 {[%clk 0:03:01.6]} 7... Be7 {[%clk 0:02:56.7]} 8. Bg2 {[%clk 0:03:02.2]}
8... O-O {[%clk 0:02:56.8]} 9. O-O {[%clk 0:03:02.8]} 9... Nbd7 {[%clk 0:02:51]}
10. h3 {[%clk 0:03:03]} 10... b5 {[%clk 0:02:50.4]} 11. a3 {[%clk 0:03:01.6]}
11... Nb6 {[%clk 0:02:48]} 12. b3 {[%clk 0:03:01]} 12... Bb7 {[%clk 0:02:41.4]}
13. Be3 {[%clk 0:03:00.8]} 13... Qc7 {[%clk 0:02:35.3]} 14. Qd2 {[%clk
0:02:58.4]} 14... Rac8 {[%clk 0:02:31.4]} 15. Rad1 {[%clk 0:02:56.6]} 15... Rfd8
{[%clk 0:02:28.9]} 16. Nd5 {[%clk 0:02:51.3]} 16... Nbxd5 {[%clk 0:02:27.1]} 17.
exd5 {[%clk 0:02:52.2]} 17... Qxc2 {[%clk 0:02:23.6]} 18. Qxc2 {[%clk
0:02:47.7]} 18... Rxc2 {[%clk 0:02:23]} 19. Rfe1 {[%clk 0:02:47.8]} 19... Rdc8
{[%clk 0:02:16.4]} 20. f4 {[%clk 0:02:39.9]} 20... Nd7 {[%clk 0:02:10.1]} 21.
fxe5 {[%clk 0:02:38.6]} 21... Nxe5 {[%clk 0:02:08.5]} 22. Bf4 {[%clk 0:02:35.2]}
22... Bf6 {[%clk 0:02:06.1]} 23. Nd4 {[%clk 0:02:33.9]} 23... Ra2 {[%clk
0:01:51.8]} 24. g4 {[%clk 0:02:25.2]} 24... h6 {[%clk 0:01:48.8]} 25. Nf5 {[%clk
0:02:21]} 25... Rcc2 {[%clk 0:01:43]} 26. Be4 {[%clk 0:02:06.9]} 26... Rc3
{[%clk 0:01:20.4]} 27. Nxd6 {[%clk 0:02:02.5]} 27... Nf3+ {[%clk 0:01:19.3]} 28.
Bxf3 {[%clk 0:02:00.1]} 28... Rxf3 {[%clk 0:01:18.9]} 29. Nxb7 {[%clk
0:01:56.2]} 29... Rxf4 {[%clk 0:01:18.6]} 30. d6 {[%clk 0:01:55.2]} 30... Rff2
{[%clk 0:01:18.5]} 31. d7 {[%clk 0:01:42.1]} 31... Rg2+ {[%clk 0:01:17.9]} 32.
Kh1 {[%clk 0:01:41.6]} 32... Rh2+ {[%clk 0:01:16.1]} 33. Kg1 {[%clk 0:01:42]}
33... Rag2+ {[%clk 0:01:15.2]} 34. Kf1 {[%clk 0:01:42.3]} 34... Rd2 {[%clk
0:00:51.7]} 35. Rxd2 {[%clk 0:01:20.7]} 35... Rxd2 {[%clk 0:00:50.9]} 36. Re8+
{[%clk 0:01:21.2]} 36... Kh7 {[%clk 0:00:50.8]} 37. d8=Q {[%clk 0:01:22.1]}
37... Bxd8 {[%clk 0:00:50.2]} 38. Nxd8 {[%clk 0:01:19.7]} 38... Rd3 {[%clk
0:00:47.4]} 39. Kg2 {[%clk 0:01:18.2]} 39... Rxb3 {[%clk 0:00:46.3]} 40. Nxf7
{[%clk 0:01:18.4]} 40... Kg6 {[%clk 0:00:35.2]} 41. Ne5+ {[%clk 0:01:09.6]}
41... Kf6 {[%clk 0:00:35.1]} 42. Nc6 {[%clk 0:00:46.5]} 42... Rxa3 {[%clk
0:00:32.6]} 43. h4 {[%clk 0:00:42.9]} 43... a5 {[%clk 0:00:25.5]} 44. Nd4 {[%clk
0:00:31.8]} 44... b4 {[%clk 0:00:23.5]} 45. Re6+ {[%clk 0:00:18.8]} 45... Kf7
{[%clk 0:00:23.4]} 46. Ra6 {[%clk 0:00:18.6]} 46... a4 {[%clk 0:00:16.9]} 47.
Nc6 {[%clk 0:00:13.1]} 47... b3 {[%clk 0:00:14.4]} 48. Ne5+ {[%clk 0:00:12.6]}
48... Ke7 {[%clk 0:00:13.3]} 49. Nc4 {[%clk 0:00:12.9]} 49... Ra2+ {[%clk
0:00:12.9]} 50. Kf3 {[%clk 0:00:11.3]} 50... Rc2 {[%clk 0:00:12.1]} 51. Rxa4
{[%clk 0:00:08.2]} 51... b2 {[%clk 0:00:11.9]} 52. Ra7+ {[%clk 0:00:05.9]} 52...
Kf6 {[%clk 0:00:09.9]} 53. Ra6+ {[%clk 0:00:04.7]} 53... Kf7 {[%clk 0:00:08.8]}
54. Nxb2 {[%clk 0:00:04.9]} 54... Rxb2 {[%clk 0:00:08.3]} 55. Kg3 {[%clk
0:00:05.8]} 55... Rb4 {[%clk 0:00:08.1]} 56. Ra7+ {[%clk 0:00:05.8]} 56... Kf6
{[%clk 0:00:08]} 57. Ra6+ {[%clk 0:00:06.3]} 57... Kf7 {[%clk 0:00:08.1]} 58.
Ra7+ {[%clk 0:00:06.6]} 58... Kg6 {[%clk 0:00:08.4]} 59. Ra6+ {[%clk 0:00:07.1]}
59... Kh7 {[%clk 0:00:08.3]} 60. Ra7 {[%clk 0:00:07.3]} 60... Rc4 {[%clk
0:00:07.5]} 61. Ra6 {[%clk 0:00:07.6]} 61... Kg8 {[%clk 0:00:07.2]} 62. Kf3
{[%clk 0:00:08]} 62... Kf7 {[%clk 0:00:05.8]} 63. h5 {[%clk 0:00:08.3]} 63...
Rd4 {[%clk 0:00:04.8]} 64. Kg3 {[%clk 0:00:08.7]} 64... Ke7 {[%clk 0:00:01.9]}
65. Kf3 {[%clk 0:00:09.2]} 1-0